lending/lending_fUSD_20260209
["ID","MTS","AMOUNT","RATE_DAILY","PERIOD"]
[404899412,1770663885619,-157.41448842,0.00016632,2]
[404899413,1770663885643,-914.08373333,0.00016632,2]
[404899414,1770663885665,-914.08373333,0.00016632,2]
[404899415,1770663885686,-914.08373333,0.00016632,2]
[404899416,1770663885707,-914.08373333,0.00016632,2]
[404899417,1770663885727,-914.08373333,0.00016632,2]
[404899418,1770663885751,-914.08373333,0.00016632,2]
[404899419,1770663885774,-914.08373333,0.00016632,2]
[404899420,1770663885802,-914.08373333,0.00016632,2]
[404899421,1770663885829,-914.08373333,0.00016632,2]
[404899422,1770663885852,-914.08373333,0.00016632,2]
[404899423,1770663885873,-914.08373333,0.00016632,2]
[404899424,1770663885895,-914.08373333,0.00016632,2]
[404899425,1770663885917,-914.08373333,0.00016632,2]
[404899426,1770663885942,-914.08373333,0.00016632,2]
[404899427,1770663885964,-914.08373333,0.00016632,2]
[404899428,1770663885987,-914.08373333,0.00016632,2]
[404899429,1770663886012,-914.08373333,0.00016632,2]
[404899430,1770663886038,-914.08373333,0.00016632,2]
[404899431,1770663886062,-914.08373333,0.00016632,2]
[404899432,1770663886085,-914.08373333,0.00016632,2]
[404899433,1770663886107,-914.08373333,0.00016632,2]
[404899434,1770663886130,-914.08373333,0.00016632,2]
[404899435,1770663886154,-914.08373333,0.00016632,2]
[404899436,1770663886175,-914.08373333,0.00016632,2]
[404899437,1770663886198,-914.08373333,0.00016632,2]
[404899438,1770663886221,-914.08373333,0.00016632,2]
[404899439,1770663886243,-914.08373333,0.00016632,2]
[404899440,1770663886265,-914.08373333,0.00016632,2]
[404899441,1770663886295,-914.08373333,0.00016632,2]
[404899442,1770663886321,-914.08373333,0.00016632,2]
[404899443,1770663886345,-914.08373333,0.00016632,2]
[404899444,1770663886367,-914.08373333,0.00016632,2]
[404899445,1770663886391,-914.08373333,0.00016632,2]
[404899446,1770663886416,-914.08373333,0.00016632,2]
[404899447,1770663886441,-914.08373333,0.00016632,2]
[404899448,1770663886463,-914.08373333,0.00016632,2]
[404899449,1770663886487,-914.08373333,0.00016632,2]
[404899450,1770663886510,-914.08373333,0.00016632,2]
[404899451,1770663886533,-914.08373333,0.00016632,2]
[404899452,1770663886556,-914.08373333,0.00016632,2]
[404899453,1770663886581,-914.08373333,0.00016632,2]
[404899454,1770663886605,-914.08373333,0.00016632,2]
[404899455,1770663886629,-914.08373333,0.00016632,2]
[404899456,1770663886652,-914.08373333,0.00016632,2]
[404899457,1770663886677,-914.08373333,0.00016632,2]
[404899458,1770663886700,-914.08373333,0.00016632,2]
[404899459,1770663886723,-914.08373333,0.00016632,2]
[404899460,1770663886749,-914.08373333,0.00016632,2]
[404899461,1770663886772,-914.08373333,0.00016632,2]
[404899462,1770663886796,-914.08373333,0.00016632,2]
[404899463,1770663886820,-914.08373333,0.00016632,2]
[404899464,1770663886843,-914.08373333,0.00016632,2]
[404899465,1770663886867,-914.08373333,0.00016632,2]
[404899466,1770663886888,-914.08373333,0.00016632,2]
[404899467,1770663886910,-914.08373333,0.00016632,2]
[404899468,1770663886932,-914.08373333,0.00016632,2]
[404899469,1770663886954,-914.08373333,0.00016632,2]
[404899470,1770663886976,-914.08373333,0.00016632,2]
[404899471,1770663886999,-178.92051728,0.00016632,2]
[404899472,1770663887022,-904.94289601,0.00016632,2]
[404899473,1770663887044,-904.94289601,0.00016632,2]
[404899474,1770663887066,-904.94289601,0.00016632,2]
[404899475,1770663887088,-904.94289601,0.00016632,2]
[404899476,1770663887111,-904.94289601,0.00016632,2]
[404899477,1770663887132,-904.94289601,0.00016632,2]
[404899478,1770663887154,-904.94289601,0.00016632,2]
[404899479,1770663887176,-904.94289601,0.00016632,2]
[404899480,1770663887202,-904.94289601,0.00016632,2]
[404899481,1770663887222,-500.0,0.00016632,2]
[404899482,1770663887242,-500.0,0.00016632,2]
[404899483,1770663887264,-904.94289601,0.00016632,2]
[404899484,1770663887286,-904.94289601,0.00016632,2]
[404899485,1770663887308,-904.94289601,0.00016632,2]
[404899486,1770663887331,-904.94289601,0.00016632,2]
[404899487,1770663887355,-904.94289601,0.00016632,2]
[404899488,1770663887375,-466.43381392,0.00016632,2]
[404899489,1770663887396,-904.94289601,0.00016632,2]
[404899490,1770663887420,-904.94289601,0.00016632,2]
[404899491,1770663887442,-904.94289601,0.00016632,2]
[404899492,1770663887465,-904.94289601,0.00016632,2]
[404899493,1770663887488,-904.94289601,0.00016632,2]
[404899494,1770663887509,-904.94289601,0.00016632,2]
[404899495,1770663887531,-904.94289601,0.00016632,2]
[404899496,1770663887553,-904.94289601,0.00016632,2]
[404899497,1770663887576,-904.94289601,0.00016632,2]
[404899498,1770663887598,-904.94289601,0.00016632,2]
[404899499,1770663887620,-904.94289601,0.00016632,2]
[404899500,1770663887642,-904.94289601,0.00016632,2]
[404899501,1770663887664,-904.94289601,0.00016632,2]
[404899502,1770663887687,-904.94289601,0.00016632,2]
[404899503,1770663887709,-904.94289601,0.00016632,2]
[404899504,1770663887728,-183.5350296,0.00016632,2]
[404899505,1770663887752,-904.9428959,0.00016632,2]
[404899506,1770663887773,-618.26617197,0.00016632,2]
[404899507,1770663887793,-500.0,0.00016632,2]
[404899508,1770663887818,-407.25306202,0.00016633,2]
[404899509,1770663887840,-19285.36207328,0.00016638,2]
[404899510,1770663887862,-206.37,0.00016651,2]
[404899511,1770663887886,-15318.02049157,0.00016671,2]
[404899512,1770663887908,-19285.36207328,0.00016681,2]
[404899513,1770663887930,-206.37,0.00016682,2]
[404899514,1770663887952,-206.37,0.00016712,2]
[404899515,1770663887975,-165.75,0.00016712,2]
[404899516,1770663888001,-15318.02049157,0.00016717,2]
[404899517,1770663888028,-19285.36207328,0.00016724,2]
[404899518,1770663888051,-2664.68716096,0.00016728,2]
[404899519,1770663888075,-2287.42850818,0.00016731,2]
[404899520,1770663888103,-206.37,0.00016742,2]
[404899521,1770663888127,-15318.02049157,0.00016762,2]
[404899522,1770663888340,-55629.27889412,0.00016767,2]
[404899523,1770663888364,-19285.36207328,0.00016768,2]
[404899524,1770663888388,-206.37,0.00016773,2]
[404899525,1770663888411,-1000.0,0.00016803,2]
[404899526,1770663888433,-206.37,0.00016803,2]
[404899527,1770663888456,-15318.02049157,0.00016808,2]
[404899528,1770663888484,-17168.73185294,0.00016811,2]
[404899530,1770663935828,-2116.63022034,0.00016811,2]
[404899531,1770663935854,-452.50340225,0.00016811,2]
[404899532,1770663935876,-266.0,0.0001682,2]
[404899533,1770663935897,-300.0,0.0001682,2]
[404899534,1770663935918,-300.0,0.0001682,2]
[404899535,1770663935940,-1200.0,0.0001682,2]
[404899536,1770663935963,-500.0,0.00016821,2]
[404899537,1770663935988,-151.0,0.00016821,2]
[404899538,1770663936009,-151.0,0.00016821,2]
[404899539,1770663936031,-151.0,0.00016821,2]
[404899540,1770663936053,-151.0,0.00016821,2]
[404899541,1770663936075,-151.0,0.00016821,2]
[404899542,1770663936096,-500.0,0.00016821,2]
[404899543,1770663936117,-151.0,0.00016821,2]
[404899544,1770663936140,-500.0,0.00016821,2]
[404899545,1770663936160,-500.0,0.00016821,2]
[404899546,1770663936183,-151.0,0.00016821,2]
[404899547,1770663936205,-500.0,0.00016821,2]
[404899548,1770663936229,-151.0,0.00016821,2]
[404899549,1770663936251,-500.0,0.00016821,2]
[404899550,1770663936272,-151.0,0.00016821,2]
[404899551,1770663936294,-151.0,0.00016821,2]
[404899552,1770663936315,-500.0,0.00016821,2]
[404899553,1770663936336,-151.0,0.00016821,2]
[404899554,1770663936357,-151.0,0.00016821,2]
[404899555,1770663936379,-500.0,0.00016821,2]
[404899556,1770663936400,-151.0,0.00016821,2]
[404899557,1770663936422,-151.0,0.00016821,2]
[404899558,1770663936444,-500.0,0.00016821,2]
[404899559,1770663936466,-151.0,0.00016821,2]
[404899560,1770663936486,-200.0,0.00016821,2]
[404899561,1770663936508,-500.0,0.00016821,2]
[404899562,1770663936531,-151.0,0.00016821,2]
[404899563,1770663936552,-500.0,0.00016821,2]
[404899564,1770663936573,-151.0,0.00016821,2]
[404899565,1770663936595,-500.0,0.00016821,2]
[404899566,1770663936616,-151.0,0.00016821,2]
[404899567,1770663936639,-151.0,0.00016821,2]
[404899568,1770663936662,-151.0,0.00016821,2]
[404899569,1770663936685,-151.0,0.00016821,2]
[404899570,1770663936708,-500.0,0.00016821,2]
[404899571,1770663936732,-151.0,0.00016821,2]
[404899572,1770663936752,-500.0,0.00016821,2]
[404899573,1770663936775,-500.0,0.00016821,2]
[404899574,1770663936796,-151.0,0.00016821,2]
[404899575,1770663936819,-500.0,0.00016821,2]
[404899576,1770663936842,-151.0,0.00016821,2]
[404899577,1770663936864,-500.0,0.00016821,2]
[404899578,1770663936886,-151.0,0.00016821,2]
[404899579,1770663936906,-500.0,0.00016821,2]
[404899580,1770663936927,-151.0,0.00016821,2]
[404899581,1770663936948,-500.0,0.00016821,2]
[404899582,1770663936969,-151.0,0.00016821,2]
[404899583,1770663936990,-500.0,0.00016821,2]
[404899584,1770663937010,-151.0,0.00016821,2]
[404899585,1770663937031,-500.0,0.00016821,2]
[404899586,1770663937051,-151.0,0.00016821,2]
[404899587,1770663937071,-268.46648169,0.00016821,2]
[404899588,1770663937091,-151.0,0.00016821,2]
[404899589,1770663937112,-500.0,0.00016821,2]
[404899590,1770663937133,-151.0,0.00016821,2]
[404899591,1770663937155,-500.0,0.00016821,2]
[404899592,1770663937175,-500.0,0.00016821,2]
[404899593,1770663937194,-500.0,0.00016821,2]
[404899594,1770663937214,-278.04542186,0.00016821,2]
[404899595,1770663937233,-200.0,0.00016821,2]
[404899596,1770663937254,-183.76996164,0.00016821,2]
[404899597,1770663937274,-500.0,0.0001683,2]
[404899598,1770663937295,-500.0,0.0001683,2]
[404899599,1770663937315,-500.0,0.0001683,2]
[404899600,1770663937336,-500.0,0.0001683,2]
[404899601,1770663937356,-157.35196225,0.0001683,2]
[404899602,1770663937376,-500.0,0.0001683,2]
[404899603,1770663937397,-500.0,0.0001683,2]
[404899604,1770663937418,-500.0,0.0001683,2]
[404899605,1770663937441,-500.0,0.0001683,2]
[404899606,1770663937462,-500.0,0.0001683,2]
[404899607,1770663937483,-500.0,0.0001683,2]
[404899608,1770663937504,-542.95825173,0.0001683,2]
[404899609,1770663937525,-212.60993331,0.0001683,2]
[404899610,1770663937550,-1000.0,0.00016833,2]
[404899611,1770663937572,-206.37,0.00016833,2]
[404899612,1770663937595,-500.0,0.00016854,2]
[404899613,1770663937617,-15318.02049157,0.00016854,2]
[404899614,1770663937640,-5616.27387336,0.00016854,2]
[404899615,1770663948949,500.0,0.00016533,2]
[404899616,1770663948988,500.0,0.00016533,2]
[404899617,1770663949197,1.22606665,0.00016632,2]
[404899618,1770663949224,498.77393335,0.00016632,2]
[404899619,1770663949442,1.22606665,0.00016632,2]
[404899620,1770663949468,505.35793479,0.00016632,2]
[404899621,1770663949494,39.43666333,0.00016632,2]
[404899622,1770663962583,460.32599149,0.00015519,2]
[404899623,1770663962609,251.92400851,0.00015519,2]
[404899624,1770663967419,253.40610052,0.00016533,2]
[404899625,1770663967447,500.0,0.00016533,2]
[404899634,1770664002589,-1746.59389948,0.00016533,2]
[404899635,1770664002611,-500.0,0.00016632,2]
[404899636,1770664002632,-648.32121275,0.00016632,2]
[404899637,1770664002653,-151.0,0.00016854,2]
[404899638,1770664002672,-231.06460488,0.00016854,2]
[404899639,1770664002693,-206.37,0.00016864,2]
[404899640,1770664002712,-166.83,0.00016877,2]
[404899641,1770664002732,-348.05035723,0.00016888,2]
[404899642,1770664002751,-206.37,0.00016894,2]
[404899643,1770664002772,-300.0,0.00016899,2]
[404899644,1770664002794,-15318.02049157,0.000169,2]
[404899645,1770664002815,-206.37,0.00016925,2]
[404899646,1770664002839,-1470.94,0.00016932,2]
[404899647,1770664002860,-550.0,0.00016932,2]
[404899648,1770664002880,-18270.4793,0.00016933,2]
[404899649,1770664002900,-15318.02049157,0.00016946,2]
[404899650,1770664002920,-5223.98123472,0.00016946,2]
[404899651,1770664002941,-206.37,0.00016955,2]
[404899652,1770664002962,-206.37,0.00016985,2]
[404899653,1770664002984,-500.0,0.00017,2]
[404899654,1770664003004,-206.37,0.00017016,2]
[404899655,1770664003023,-38018.4784078,0.00017033,2]
[404899715,1770664231652,-500.0,0.00016422,2]
[404899716,1770664231663,-1454.22624849,0.00016464,2]
[404899717,1770664231673,-288.0,0.00016464,2]
[404899718,1770664231683,-300.0,0.0001648,2]
[404899719,1770664231694,-196.1524887,0.0001648,2]
[404899720,1770664231707,-103.8475113,0.0001648,2]
[404899721,1770664231716,-1200.0,0.0001648,2]
[404899722,1770664231726,-3762.23839943,0.00016481,2]
[404899723,1770664231758,-562.13670822,0.00016481,2]
[404899724,1770664231812,-14302.06489235,0.00016481,2]
[404899725,1770664231823,-11977.23,0.00016525,2]
[404899726,1770664231832,-1000.0,0.00016532,2]
[404899727,1770664231842,-2500.0,0.00016532,2]
[404899728,1770664231852,-500.0,0.00016632,2]
[404899729,1770664231866,-1998.51537072,0.00016946,2]
[404899731,1770664231885,-431.07367188,0.00016946,2]
[404899733,1770664231895,-500.0,0.00017,2]
[404899735,1770664231906,-550.0,0.00017022,2]
[404899737,1770664231916,-500.0,0.00017023,2]
[404899738,1770664231926,-151.0,0.00017023,2]
[404899740,1770664231935,-500.0,0.00017023,2]
[404899742,1770664231944,-151.0,0.00017023,2]
[404899744,1770664231954,-500.0,0.00017023,2]
[404899746,1770664231964,-151.0,0.00017023,2]
[404899748,1770664231974,-500.0,0.00017023,2]
[404899750,1770664231983,-151.0,0.00017023,2]
[404899752,1770664231993,-500.0,0.00017023,2]
[404899754,1770664232003,-151.0,0.00017023,2]
[404899756,1770664232012,-500.0,0.00017023,2]
[404899759,1770664232023,-151.0,0.00017023,2]
[404899760,1770664232032,-500.0,0.00017023,2]
[404899762,1770664232041,-151.0,0.00017023,2]
[404899764,1770664232050,-500.0,0.00017023,2]
[404899766,1770664232060,-151.0,0.00017023,2]
[404899768,1770664232069,-200.0,0.00017023,2]
[404899770,1770664232078,-433.01318057,0.00017023,2]
[404899771,1770664232088,-151.0,0.00017023,2]
[404899773,1770664232098,-151.0,0.00017023,2]
[404899775,1770664232107,-151.0,0.00017023,2]
[404899777,1770664232116,-500.0,0.00017023,2]
[404899779,1770664232129,-500.0,0.00017023,2]
[404899781,1770664232138,-500.0,0.00017023,2]
[404899783,1770664232148,-500.0,0.00017023,2]
[404899785,1770664232157,-500.0,0.00017023,2]
[404899787,1770664232167,-500.0,0.00017023,2]
[404899789,1770664232177,-500.0,0.00017023,2]
[404899791,1770664232187,-500.0,0.00017023,2]
[404899793,1770664232196,-500.0,0.00017023,2]
[404899795,1770664232206,-500.0,0.00017023,2]
[404899797,1770664232216,-500.0,0.00017023,2]
[404899799,1770664232225,-500.0,0.00017023,2]
[404899801,1770664232234,-500.0,0.00017023,2]
[404899803,1770664232243,-200.0,0.00017023,2]
[404899805,1770664232252,-1000.0,0.00017032,2]
[404899807,1770664232261,-500.0,0.00017032,2]
[404899809,1770664232270,-301.4011037,0.00017032,2]
[404899811,1770664232279,-282.55091686,0.00017032,2]
[404899812,1770664232289,-500.0,0.00017032,2]
[404899814,1770664232298,-500.0,0.00017032,2]
[404899816,1770664232308,-500.0,0.00017032,2]
[404899818,1770664232317,-618.90692798,0.00017032,2]
[404899820,1770664232326,-500.0,0.00017032,2]
[404899822,1770664232336,-500.0,0.00017032,2]
[404899824,1770664232345,-500.0,0.00017032,2]
[404899826,1770664232354,-500.0,0.00017032,2]
[404899828,1770664232363,-500.0,0.00017032,2]
[404899830,1770664232372,-500.0,0.00017032,2]
[404899832,1770664232384,-500.0,0.00017032,2]
[404899834,1770664232393,-500.0,0.00017032,2]
[404899836,1770664232403,-500.0,0.00017032,2]
[404899838,1770664232413,-500.0,0.00017032,2]
[404899840,1770664232422,-500.0,0.00017032,2]
[404899842,1770664232432,-500.0,0.00017032,2]
[404899844,1770664232441,-500.0,0.00017032,2]
[404899845,1770664232451,-500.0,0.00017032,2]
[404899846,1770664232460,-500.0,0.00017032,2]
[404899847,1770664232469,-500.0,0.00017032,2]
[404899848,1770664232478,-211.0027218,0.00017033,2]
[404899849,1770664232487,-206.37,0.00017046,2]
[404899850,1770664232496,-5223.98123464,0.00017052,2]
[404899851,1770664232506,-206.37,0.00017077,2]
[404899852,1770664232515,-1998.51537072,0.00017082,2]
[404899853,1770664232525,-1000.0,0.00017132,2]
[404899854,1770664232534,-5223.98123464,0.00017158,2]
[404899855,1770664232543,-258.68,0.00017158,2]
[404899856,1770664232553,-1998.51537072,0.00017219,2]
[404899857,1770664232563,-348.05035723,0.00017226,2]
[404899858,1770664232572,-1909.39558175,0.00017229,2]
[404899859,1770664232612,-2432.84441825,0.00017229,2]
[404899860,1770664232622,-173.75,0.00017233,2]
[404899861,1770664232632,-5223.98123464,0.00017264,2]
[404899862,1770664232642,-500.0,0.00017306,2]
[404899863,1770664232651,-150.29839688,0.00017317,2]
[404899864,1770664232660,-1998.51537072,0.00017355,2]
[404899865,1770664232670,-5223.98123464,0.0001737,2]
[404899866,1770664232679,-431.07367187,0.00017423,2]
[404899867,1770664232689,-400.0,0.0001746,2]
[404899868,1770664232698,-326.0,0.0001746,2]
[404899869,1770664232707,-421.08,0.00017474,2]
[404899870,1770664232717,-5223.98123464,0.00017476,2]
[404899871,1770664232726,-1998.51537072,0.00017491,2]
[404899872,1770664232737,-153.87,0.00017515,2]
[404899873,1770664232747,-150.0,0.00017525,2]
[404899874,1770664232756,-150.0,0.00017525,2]
[404899875,1770664232766,-150.0,0.00017525,2]
[404899876,1770664232775,-150.0,0.00017525,2]
[404899877,1770664232784,-250.0,0.00017525,2]
[404899878,1770664232794,-500.0,0.00017525,2]
[404899879,1770664232803,-197.5640771,0.00017525,2]
[404899880,1770664232814,-302.4359229,0.00017525,2]
[404899881,1770664232823,-150.0,0.00017525,2]
[404899882,1770664232833,-500.0,0.00017525,2]
[404899883,1770664232842,-150.0,0.00017525,2]
[404899884,1770664232854,-500.0,0.00017525,2]
[404899885,1770664232863,-150.0,0.00017525,2]
[404899886,1770664232872,-500.0,0.00017525,2]
[404899887,1770664232883,-150.0,0.00017525,2]
[404899888,1770664232892,-150.0,0.00017525,2]
[404899889,1770664232902,-500.0,0.00017525,2]
[404899890,1770664232911,-150.0,0.00017525,2]
[404899891,1770664232920,-500.0,0.00017525,2]
[404899892,1770664232931,-45.2640771,0.00017525,2]
[404899893,1770664232942,-454.7359229,0.00017525,2]
[404899894,1770664232951,-150.0,0.00017525,2]
[404899895,1770664232960,-348.05035723,0.00017563,2]
[404899896,1770664232969,-200.0,0.00017571,2]
[404899897,1770664232978,-500.0,0.00017571,2]
[404899898,1770664232987,-200.0,0.00017571,2]
[404899899,1770664232997,-150.0,0.0001758,2]
[404899900,1770664233008,-150.0,0.0001758,2]
[404899901,1770664233018,-144.79718696,0.0001758,2]
[404899903,1770664237906,-5.20281304,0.0001758,2]
[404899904,1770664237915,-150.0,0.0001758,2]
[404899905,1770664237926,-500.0,0.0001758,2]
[404899906,1770664237935,-500.0,0.0001758,2]
[404899907,1770664237944,-500.0,0.0001758,2]
[404899908,1770664237953,-202.65824517,0.0001758,2]
[404899909,1770664237963,-500.0,0.0001758,2]
[404899910,1770664237972,-500.0,0.0001758,2]
[404899911,1770664237981,-500.0,0.0001758,2]
[404899912,1770664237990,-150.0,0.0001758,2]
[404899913,1770664238000,-501.68337688,0.0001758,2]
[404899914,1770664238009,-150.0,0.0001758,2]
[404899915,1770664238018,-500.0,0.0001758,2]
[404899916,1770664238028,-150.0,0.0001758,2]
[404899918,1770664238037,-5223.98123464,0.00017582,2]
[404899920,1770664238051,-1998.51537072,0.00017627,2]
[404899922,1770664238061,-150.0,0.00017635,2]
[404899924,1770664238072,-150.0,0.00017635,2]
[404899926,1770664238082,-201.68846784,0.00017635,2]
[404899928,1770664238091,-150.0,0.00017635,2]
[404899930,1770664238101,-500.0,0.00017635,2]
[404899932,1770664238111,-155.69787542,0.00017635,2]
[404899934,1770664238121,-500.0,0.00017635,2]
[404899936,1770664238131,-500.0,0.00017635,2]
[404899938,1770664238141,-500.0,0.00017635,2]
[404899940,1770664238150,-500.0,0.00017635,2]
[404899942,1770664238160,-500.0,0.00017635,2]
[404899944,1770664238170,-150.0,0.00017635,2]
[404899946,1770664238179,-150.0,0.00017635,2]
[404899948,1770664238189,-200.0,0.00017635,2]
[404899950,1770664238198,-240.0,0.00017654,2]
[404899952,1770664238208,-195.0,0.00017654,2]
[404899955,1770664238217,-1000.0,0.00017669,2]
[404899957,1770664238227,-5223.98123464,0.00017688,2]
[404899958,1770664238236,-150.0,0.00017689,2]
[404899959,1770664238248,-225.13164906,0.00017689,2]
[404899960,1770664238264,-27.63824565,0.00017689,2]
[404899961,1770664238274,-150.0,0.00017689,2]
[404899962,1770664238283,-500.0,0.00017689,2]
[404899963,1770664238293,-500.0,0.00017689,2]
[404899964,1770664238302,-500.0,0.00017689,2]
[404899965,1770664238312,-500.0,0.00017689,2]
[404899966,1770664238324,-500.0,0.00017689,2]
[404899967,1770664238334,-500.0,0.00017689,2]
[404899968,1770664238344,-150.0,0.00017689,2]
[404899969,1770664238353,-268.25268962,0.00017689,2]
[404899970,1770664238362,-1254.28,0.0001769,2]
[404899971,1770664238372,-500.0,0.00017744,2]
[404899972,1770664238382,-500.0,0.00017744,2]
[404899973,1770664238392,-500.0,0.00017744,2]
[404899974,1770664238401,-500.0,0.00017744,2]
[404899975,1770664238412,-600.0,0.00017744,2]
[404899976,1770664238421,-500.0,0.00017744,2]
[404899977,1770664238431,-150.0,0.00017744,2]
[404899978,1770664238440,-1998.51537072,0.00017764,2]
[404899979,1770664238450,-5223.98123464,0.00017794,2]
[404899980,1770664238462,-500.0,0.00017799,2]
[404899981,1770664238471,-500.0,0.00017799,2]
[404899982,1770664238481,-500.0,0.00017799,2]
[404899983,1770664238491,-500.0,0.00017799,2]
[404899984,1770664238501,-500.0,0.00017799,2]
[404899985,1770664238511,-250.0,0.00017799,2]
[404899986,1770664238522,-500.0,0.00017808,2]
[404899987,1770664238532,-578.22990471,0.00017808,2]
[404899988,1770664238542,-578.22990471,0.00017808,2]
[404899989,1770664238552,-578.22990471,0.00017808,2]
[404899990,1770664238562,-578.22990471,0.00017808,2]
[404899991,1770664238572,-578.22990471,0.00017808,2]
[404899992,1770664238583,-578.22990471,0.00017808,2]
[404899993,1770664238594,-578.22990471,0.00017808,2]
[404899994,1770664238604,-578.22990471,0.00017808,2]
[404899995,1770664238614,-578.22990471,0.00017808,2]
[404899996,1770664238624,-578.22990471,0.00017808,2]
[404899997,1770664238636,-578.22990471,0.00017808,2]
[404899998,1770664238646,-578.22990471,0.00017808,2]
[404899999,1770664238658,-578.22990471,0.00017808,2]
[404900000,1770664238668,-578.22990471,0.00017808,2]
[404900001,1770664238678,-578.22990471,0.00017808,2]
[404900002,1770664238688,-578.22990471,0.00017808,2]
[404900003,1770664238697,-578.22990471,0.00017808,2]
[404900004,1770664238707,-578.22990471,0.00017808,2]
[404900005,1770664238717,-578.22990471,0.00017808,2]
[404900006,1770664238728,-578.22990471,0.00017808,2]
[404900007,1770664238738,-578.22990471,0.00017808,2]
[404900008,1770664238748,-578.22990471,0.00017808,2]
[404900009,1770664238758,-578.22990471,0.00017808,2]
[404900010,1770664238768,-578.22990471,0.00017808,2]
[404900011,1770664238778,-578.22990471,0.00017808,2]
[404900012,1770664238788,-578.22990471,0.00017808,2]
[404900013,1770664238797,-578.22990471,0.00017808,2]
[404900014,1770664238807,-578.22990471,0.00017808,2]
[404900015,1770664238817,-578.22990471,0.00017808,2]
[404900016,1770664239041,-578.22990471,0.00017808,2]
[404900017,1770664239051,-578.22990471,0.00017808,2]
[404900018,1770664239061,-578.22990471,0.00017808,2]
[404900019,1770664239072,-578.22990471,0.00017808,2]
[404900020,1770664239081,-578.22990471,0.00017808,2]
[404900021,1770664239090,-578.22990471,0.00017808,2]
[404900022,1770664239099,-578.22990471,0.00017808,2]
[404900023,1770664239108,-578.22990471,0.00017808,2]
[404900024,1770664239118,-578.22990471,0.00017808,2]
[404900025,1770664239127,-578.22990471,0.00017808,2]
[404900026,1770664239137,-578.22990471,0.00017808,2]
[404900027,1770664239147,-578.22990471,0.00017808,2]
[404900028,1770664239157,-578.22990471,0.00017808,2]
[404900029,1770664239166,-578.22990471,0.00017808,2]
[404900030,1770664239175,-578.22990471,0.00017808,2]
[404900031,1770664239184,-578.22990471,0.00017808,2]
[404900032,1770664239193,-578.22990471,0.00017808,2]
[404900033,1770664239202,-578.22990471,0.00017808,2]
[404900034,1770664239212,-578.22990471,0.00017808,2]
[404900035,1770664239221,-578.22990471,0.00017808,2]
[404900036,1770664239230,-578.22990471,0.00017808,2]
[404900037,1770664239239,-578.22990471,0.00017808,2]
[404900038,1770664239249,-578.22990471,0.00017808,2]
[404900039,1770664239258,-578.22990471,0.00017808,2]
[404900040,1770664239267,-578.22990471,0.00017808,2]
[404900041,1770664239276,-578.22990471,0.00017808,2]
[404900042,1770664239286,-578.22990471,0.00017808,2]
[404900043,1770664239295,-578.22990471,0.00017808,2]
[404900044,1770664239305,-578.22990471,0.00017808,2]
[404900045,1770664239316,-578.22990471,0.00017808,2]
[404900046,1770664239326,-578.22990471,0.00017808,2]
[404900047,1770664239335,-578.22990471,0.00017808,2]
[404900048,1770664239344,-578.22990471,0.00017808,2]
[404900049,1770664239355,-578.22990471,0.00017808,2]
[404900050,1770664239364,-578.22990471,0.00017808,2]
[404900051,1770664239376,-578.22990471,0.00017808,2]
[404900052,1770664239386,-578.22990471,0.00017808,2]
[404900053,1770664239396,-578.22990471,0.00017808,2]
[404900054,1770664239405,-578.22990471,0.00017808,2]
[404900055,1770664239414,-777.92382463,0.00017808,2]
[404900056,1770664239424,-777.92382463,0.00017808,2]
[404900057,1770664239433,-777.92382463,0.00017808,2]